Cogmind - Beta 15 @@@ ROGUE MODE // 2025.05.30 @ 22:16:53 Player: Jack Result: Destroyed by G-73 Enforcer with Heavy Laser Performance ------------- Evolutions (9) 4500 Regions Visited (12) 2400 Robots Destroyed (47) 235 Value Destroyed (1424) 1424 Prototype IDs (3) 60 Alien Tech Used (0) 0 Bonus (0) 0 TOTAL SCORE: 8619 Bonus ------- None Cogmind --------- Core Integrity 0/1600 Matter 10/300 Energy 99/100 System Corruption 0% Temperature Cool (9) Movement Core (50) Location -1/Access Parts ------- > --- POWER (2) -------- (None) > --- PROPULSION (8) --- (None) > --- UTILITY (13) ----- Terrain Scan Processor > --- WEAPON (2) ------- (None) > --- INVENTORY (5) ---- Tesla Rifle Peak State ------------ > --- POWER ------------ Improved Ion Engine > --- PROPULSION ------- Q-thruster Impulse Thruster Array Impulse Thruster Array > --- UTILITY ---------- Improved Sensor Array Improved Signal Interpreter Terrain Scan Processor Hacking Suite Hacking Suite Experimental Hacking Suite Advanced System Shield Authchip [Propulsion] > --- WEAPON ----------- Scatter Rocket Array Katana > --- INVENTORY -------- (None) [Rating: 83] Favorites ----------- Power Light Ion Engine Engine Light Ion Engine Power Core Light Nuclear Core Propulsion Xenon Bombardment Thruster Flight Unit Xenon Bombardment Thruster Utility Hacking Suite Device Improved Sensor Array Processor Improved Signal Interpreter Hackware Hacking Suite Weapon Light Assault Rifle Energy Gun Small Laser Ballistic Gun Light Assault Rifle Launcher Scatter Rocket Array Slashing Weapon Katana Piercing Weapon Spear Build | -11 -10 -10 -10 -9 -8 -7 -6 -5 -4 -3 -2 -1 ------- Run | Yrd Mat Min Exi Min Mat Fac Fac Fac Fac Res Res Acc Slots Evolved 18 | . . . . . 4 2 2 2 2 2 2 2 Power 1 | . . . . . . . . . . 1 . . Propulsion 6 | . . . . . . . . 2 2 . . 2 Utility 11 | . . . . . 4 2 2 . . 1 2 . Weapon . | . . . . . . . . . . . . . Parts Attached 48 | 2 . 1 . 4 . 15 8 1 2 12 . 3 Power 4 | . . . . 1 . . 1 . . 2 . . Engine 3 | . . . . 1 . . . . . 2 . . Core 1 | . . . . . . . 1 . . . . . Reactor . | . . . . . . . . . . . . . Propulsion 10 | . . . . 2 . 2 1 1 1 3 . . Treads . | . . . . . . . . . . . . . Leg . | . . . . . . . . . . . . . Wheel . | . . . . . . . . . . . . . Hover . | . . . . . . . . . . . . . Flight 10 | . . . . 2 . 2 1 1 1 3 . . Utility 25 | . . 1 . . . 11 4 . 1 6 . 2 Device 8 | . . 1 . . . 3 . . . 3 . 1 Storage . | . . . . . . . . . . . . . Processor 5 | . . . . . . 3 . . . 1 . 1 Hackware 12 | . . . . . . 5 4 . 1 2 . . Protection . | . . . . . . . . . . . . . Artifact . | . . . . . . . . . . . . . Weapon 9 | 2 . . . 1 . 2 2 . . 1 . 1 Energy Gun 2 | 1 . . . . . . . . . . . 1 Energy Cannon . | . . . . . . . . . . . . . Ballistic Gun 2 | 1 . . . 1 . . . . . . . . Ballistic Cannon . | . . . . . . . . . . . . . Launcher 2 | . . . . . . . 2 . . . . . Special Weapon . | . . . . . . . . . . . . . Impact Weapon . | . . . . . . . . . . . . . Slashing Weapon 1 | . . . . . . . . . . 1 . . Piercing Weapon 2 | . . . . . . 2 . . . . . . Special Melee Weapon . | . . . . . . . . . . . . . Unidentified Prototypes 3 | . . 1 . . . . 1 . 1 . . . Parts Lost 32 | . . . . . . . 2 . 7 14 3 6 Power 3 | . . . . . . . 1 . . 2 . . Propulsion 6 | . . . . . . . . . 3 3 . . Utility 18 | . . . . . . . 1 . 3 6 3 5 Weapon 5 | . . . . . . . . . 1 3 . 1 Highest Loss Streak 8 | . . . . . . . 2 . 7 8 3 5 To Critical Strikes . | . . . . . . . . . . . . . Average Backups 3 | . 1 2 2 3 5 4 4 5 5 2 1 1 Power . | . . . . . . . . . . . . . Propulsion . | . . . . . 1 . . . . . . . Utility . | . . . . . . 1 1 1 2 . . . Weapon 2 | . 1 1 2 2 4 3 3 3 3 1 1 1 Tool/Special . | . . . . . . . . . . . . . Unused Backups 3 | . . . . . . 2 . 1 . . . . Power . | . . . . . . . . . . . . . Propulsion . | . . . . . . . . . . . . . Utility 1 | . . . . . . . . 1 . . . . Weapon 2 | . . . . . . 2 . . . . . . Tool/Special . | . . . . . . . . . . . . . Average Slot Usage (%) 62 | . 28 30 28 54 45 84 89 89 84 47 27 18 Engine 2 | . . . . 8 9 7 2 . . 1 . . Core 1 | . . . . . . . 3 5 5 . . . Flight 9 | . . . . 18 18 15 13 15 18 4 . . Device 7 | . . 2 . . . 9 13 11 10 6 3 2 Processor 5 | . . . . . . 8 6 5 5 6 7 6 Hackware 23 | . . . . . . 27 42 41 34 23 16 8 Energy Gun 2 | . 14 14 14 14 9 . . . . . . . Ballistic Gun 4 | . 14 14 14 14 9 7 . 2 4 . . . Piercing Weapon 3 | . . . . . . 6 6 5 5 2 . . Peak Build Rating 83 | 2 2 16 2 5 5 36 46 63 76 83 26 33 Average Rating 34 | 1 2 5 2 4 5 28 41 54 68 43 24 19 On Entrance 18 | . 2 2 2 2 5 5 34 45 59 45 26 17 Naked Turns . | . . . . . . . . . . . . . Heaviest Build 18 | 2 2 16 2 5 5 8 9 10 17 18 1 9 Greatest Support 40 | 3 3 3 3 8 8 10 12 25 38 40 3 3 Greatest Overweight (x) 5 | . . 5 . . . . . . . 2 . 2 Average Overweight (x) . | . . . . . . . . . . . . . Largest Inventory Capacity 5 | 5 5 5 5 5 5 5 5 5 5 5 5 5 Average Capacity 5 | 5 5 5 5 5 5 5 5 5 5 5 5 5 Most Carried 5 | 1 1 4 2 5 5 5 5 5 5 5 1 2 Average Carried 3 | . 1 2 2 3 5 4 4 4 5 2 1 1 Final Capacity 5 | 5 5 5 5 5 5 5 5 5 5 5 5 5 Final Carried 5 | 1 1 2 2 5 5 5 5 5 5 1 1 1 Class Distribution -------------------- 26% | Wizard-Scout 25% | Hacker-Scout 20% | Hacker-Mutant 17% | Mutant 9% | Scavenger-Mutant Dominant Class ---------------- Mutant | -10/Materials Mutant | -10/Mines Mutant | -10/Exiles Scavenger-Mutant | -9/Mines Scavenger-Mutant | -8/Materials Hacker-Scout | -7/Factory Wizard-Scout | -6/Factory Wizard-Scout | -5/Factory Wizard-Scout | -4/Factory Hacker-Scout | -3/Research Hacker-Mutant | -2/Research Mutant | -1/Access Resources | -11 -10 -10 -10 -9 -8 -7 -6 -5 -4 -3 -2 -1 ----------- Run | Yrd Mat Min Exi Min Mat Fac Fac Fac Fac Res Res Acc Matter Collected 947 | 220 . 20 . 29 . 173 30 11 87 377 . . Remotely . | . . . . . . . . . . . . . Salvage Created 1011 | . . . . 29 . 237 73 11 160 276 . 225 Parts 88 | . . . . 5 . 26 8 2 13 15 . 19 Haulers Intercepted 1 | . . . . . . . . . . 1 . . Recyclers Shooed . | . . . . . . . . . . . . . Parts Field Recycled . | . . . . . . . . . . . . . Retrieved Matter . | . . . . . . . . . . . . . Parts Self-Destructed . | . . . . . . . . . . . . . Prevented . | . . . . . . . . . . . . . Kills | -11 -10 -10 -10 -9 -8 -7 -6 -5 -4 -3 -2 -1 ------- Run | Yrd Mat Min Exi Min Mat Fac Fac Fac Fac Res Res Acc Combat Hostiles Destroyed 25 | . . . . 2 . . 3 . 6 3 . 11 Melee 1 | . . . . . . . . . . 1 . . Guns 2 | . . . . 2 . . . . . . . . AOE 22 | . . . . . . . 3 . 6 2 . 11 Classes Destroyed 10 | . . . . 1 . 4 . . 1 3 . 1 Worker 5 | . . . . . . 1 1 . 2 . . 1 Builder 6 | . . . . . . 2 . . . 2 . 2 Hauler 1 | . . . . . . . . . . 1 . . Operator 7 | . . . . . . 5 1 1 . . . . Watcher 3 | . . . . . . 2 . . 1 . . . Swarmer 19 | . . . . 2 . . 3 . 4 . . 10 Cutter 2 | . . . . . . . . . 2 . . . Grunt 1 | . . . . . . . . . . . . 1 Sentry 1 | . . . . . . . . . . 1 . . Programmer 2 | . . . . . . . . . . 2 . . Best Kill Streak 8 | . . . . 2 . 1 4 . 4 2 . 8 Combat Bots Only 5 | . . . . 2 . . 3 . 4 2 . 5 Max Kills in Single Turn 7 | . . . . 1 . 1 2 1 4 1 . 7 Gunslinging . | . . . . . . . . . . . . . Exploded 4 | . . . . . . . 2 . 4 1 . 4 Melee 1 | . . . . . . . . . . 1 . . Uniques/NPCs Destroyed . | . . . . . . . . . . . . . Combat | -11 -10 -10 -10 -9 -8 -7 -6 -5 -4 -3 -2 -1 -------- Run | Yrd Mat Min Exi Min Mat Fac Fac Fac Fac Res Res Acc Hostile Shots Fired 363 | . . 7 . 13 8 1 16 6 25 128 16 143 Missed 161 | . . 2 . 5 6 1 7 3 14 61 5 57 Hits 202 | . . 5 . 8 2 . 9 3 11 67 11 86 Projectile 202 | . . 5 . 8 2 . 9 3 11 67 11 86 AOE 2 | . . . . . . . . . 2 . . . Critical Strikes 8 | . . . . . . . . . 1 3 . 4 Damage Taken 4560 | . . 75 . 68 31 . 146 49 579 1544 261 1807 Core 2917 | . . 43 . 27 17 . 50 12 267 734 165 1602 Absorbed by Shields 31 | . . . . . . . . . . 31 . . Core Remaining (%) 85 | 100 . . . 72 96 100 94 98 76 43 88 . Volleys Fired 17 | . . . . 2 . . 3 . 3 2 . 7 Largest 2 | . . . . 2 . . 1 . 1 1 . 1 Hottest 65 | . . . . 60 . . 39 . 50 50 . 65 Shots Fired 19 | . . . . 4 . . 3 . 3 2 . 7 Gun 6 | . . . . 4 . . . . . . . 2 Cannon . | . . . . . . . . . . . . . Launcher 13 | . . . . . . . 3 . 3 2 . 5 Special . | . . . . . . . . . . . . . Kinetic 2 | . . . . 2 . . . . . . . . Thermal 2 | . . . . 2 . . . . . . . . Explosive 13 | . . . . . . . 3 . 3 2 . 5 Electromagnetic 2 | . . . . . . . . . . . . 2 Robot Hit Streak 2 | . . . . 1 . . 2 . 1 2 . 1 Robot Miss Streak 14 | . . . . 1 . . 1 . 8 9 . 14 Penetration Max . | . . . . . . . . . . . . . Secondary Targets . | . . . . . . . . . . . . . Shots Hit Robots 46 | . . . . 2 . 17 4 1 4 16 . 2 Core Hits 97 | . . . . 2 . 6 5 1 17 15 . 51 Critical Kills . | . . . . . . . . . . . . . Critical Parts Destroyed . | . . . . . . . . . . . . . Critical Strikes 6 | . . . . . . 3 . . 1 2 . . Sever 1 | . . . . . . . . . . 1 . . Impale 5 | . . . . . . 3 . . 1 1 . . Melee Attacks 137 | . . . . . . 48 13 16 16 44 . . Impact . | . . . . . . . . . . . . . Slashing 9 | . . . . . . . . . . 9 . . Piercing 128 | . . . . . . 48 13 16 16 35 . . Sneak Attacks 14 | . . . . . . 4 1 1 2 6 . . Combat Hostiles . | . . . . . . . . . . . . . Follow-up Attacks . | . . . . . . . . . . . . . Damage Inflicted 4073 | . . 7 . 20 . 791 448 52 521 934 10 1290 Guns 20 | . . . . 20 . . . . . . . . Cannons . | . . . . . . . . . . . . . Explosions 2269 | . . . . . . . 325 . 340 314 . 1290 Melee 1755 | . . . . . . 791 123 52 181 608 . . Ramming 29 | . . 7 . . . . . . . 12 10 . Kinetic 10 | . . . . 10 . . . . . . . . Thermal 10 | . . . . 10 . . . . . . . . Explosive 2269 | . . . . . . . 325 . 340 314 . 1290 Electromagnetic . | . . . . . . . . . . . . . Impact . | . . . . . . . . . . . . . Slashing 203 | . . . . . . . . . . 203 . . Piercing 1552 | . . . . . . 791 123 52 181 405 . . Highest Corruption 5 | . . . . . . . . . 5 2 . . Average Corruption 2 | . . . . . . . . . 5 1 . . Corruption Purged . | . . . . . . . . . . . . . Corruption Blocked . | . . . . . . . . . . . . . Effects 1 | . . . . . . . . . . 1 . . Matter Fused 1 | . . . . . . . . . . 1 . . Overload Shots . | . . . . . . . . . . . . . Overflow Damage 642 | . . . . . . 261 44 . . 293 . 44 Projectiles . | . . . . . . . . . . . . . Explosions 142 | . . . . . . . 44 . . 54 . 44 Melee 500 | . . . . . . 261 . . . 239 . . Knockbacks . | . . . . . . . . . . . . . Impact . | . . . . . . . . . . . . . Kinetic . | . . . . . . . . . . . . . Secondary . | . . . . . . . . . . . . . Self-Inflicted Damage 401 | . . 3 . . . . 45 . . 188 5 160 Shots 15 | . . . . . . . 1 . . 6 . 8 Rammed 6 | . . 1 . . . . . . . 3 2 . Targets Rammed 6 | . . 1 . . . . . . . 3 2 . Kicked . | . . . . . . . . . . . . . Crushed . | . . . . . . . . . . . . . Highest Temperature 10 | . . . . 10 . . . . . . . . Average Temperature 7 | . . . . 7 . . . . . . . . Received Heat Transfer 387 | . . 45 . . 9 . . . . 72 54 207 Siege Activations . | . . . . . . . . . . . . . Martial Activations . | . . . . . . . . . . . . . Shielding Activations . | . . . . . . . . . . . . . Robots Disrupted . | . . . . . . . . . . . . . Combat Hostiles . | . . . . . . . . . . . . . Robots Corrupted . | . . . . . . . . . . . . . Combat Hostiles . | . . . . . . . . . . . . . Parts Fried . | . . . . . . . . . . . . . Impact Corruptions . | . . . . . . . . . . . . . Robots Melted . | . . . . . . . . . . . . . Combat Hostiles . | . . . . . . . . . . . . . Parts Melted . | . . . . . . . . . . . . . Heat Transferred 25 | . . . . 25 . . . . . . . . Parts Sabotaged . | . . . . . . . . . . . . . Parts Stolen . | . . . . . . . . . . . . . Parts Stripped . | . . . . . . . . . . . . . Power Chain Reactions . | . . . . . . . . . . . . . Alert | -11 -10 -10 -10 -9 -8 -7 -6 -5 -4 -3 -2 -1 ------- Run | Yrd Mat Min Exi Min Mat Fac Fac Fac Fac Res Res Acc Maximum Alert Level 1 | . . . . . . . . . 1 . . 1 Low Security (%) 93 | 100 100 100 . 100 100 100 100 100 58 100 100 68 Level 1 6 | . . . . . . . . . 41 . . 31 Level 2 . | . . . . . . . . . . . . . Level 3 . | . . . . . . . . . . . . . Level 4 . | . . . . . . . . . . . . . Level 5 . | . . . . . . . . . . . . . High Security . | . . . . . . . . . . . . . Max Security . | . . . . . . . . . . . . . Peak Influence 329 | . . 20 . 80 27 60 84 24 329 156 22 262 Initial 147 | . . . . . 23 2 . 2 . 147 22 3 Average 44 | . . 3 . 55 18 19 31 4 121 59 8 110 Influence Increases 1674 | . . 30 . 80 4 227 178 52 447 244 6 406 Destroy 0b10 Robot/C 500 | . . . . 40 . . 60 . 120 60 . 220 Destroy 0b10 Robot/NC 105 | . . . . . . 50 10 . 15 15 . 15 Destroy Leader 98 | . . . . 10 . 4 10 . 22 22 . 30 Successful Hack 40 | . . . . . 4 6 15 . . 9 6 . Disable Machine 195 | . . . . . . 60 . 15 75 15 . 30 Destroy Structure 346 | . . . . . . 17 38 22 110 78 . 81 Partial Spotted 210 | . . . . . . 30 30 15 75 45 . 15 Lose Combat Pursuer 180 | . . 30 . 30 . 60 15 . 30 . . 15 Influence Decreases 1418 | . . 20 10 20 57 233 172 59 166 485 40 156 Entered New Map 213 | . . . 10 . 37 5 1 5 . 134 18 3 Time Decay 953 | . . 20 . 20 20 228 151 54 96 239 22 103 Lost Part 252 | . . . . . . . 20 . 70 112 . 50 Squads Dispatched 17 | . . . . . . 4 2 2 2 4 . 3 Investigation 5 | . . . . . . 1 1 2 . 1 . . Extermination 5 | . . . . . . 2 1 . . 1 . 1 Reinforcement 5 | . . . . . . 1 . . 1 2 . 1 Assault . | . . . . . . . . . . . . . Garrison 2 | . . . . . . . . . 1 . . 1 Intercept . | . . . . . . . . . . . . . Searches Triggered . | . . . . . . . . . . . . . Construction Impeded 2 | . . . . . . . . . . 2 . . Haulers Reinforced . | . . . . . . . . . . . . . Active Scanning Responses . | . . . . . . . . . . . . . Cargo Convoy Interrupts . | . . . . . . . . . . . . . Stealth | -11 -10 -10 -10 -9 -8 -7 -6 -5 -4 -3 -2 -1 --------- Run | Yrd Mat Min Exi Min Mat Fac Fac Fac Fac Res Res Acc Distress Signals 5 | . 1 . . . 1 . . . . 1 . 2 Communications Jammed . | . . . . . . . . . . . . . Distress Signals . | . . . . . . . . . . . . . Times Spotted 97 | . 1 8 . 8 4 11 7 2 20 13 5 18 Peak Tracking Total 10 | . 5 2 . 4 5 3 4 2 9 7 6 10 Tactical Retreats 9 | . . 1 . 1 . 4 1 . 1 . . 1 Traps | -11 -10 -10 -10 -9 -8 -7 -6 -5 -4 -3 -2 -1 ------- Run | Yrd Mat Min Exi Min Mat Fac Fac Fac Fac Res Res Acc Traps Triggered 2 | . . . . . . . . . . 2 . . Indirectly . | . . . . . . . . . . . . . Trap Hack Attempts . | . . . . . . . . . . . . . Triggered . | . . . . . . . . . . . . . Disarmed . | . . . . . . . . . . . . . Reprogrammed . | . . . . . . . . . . . . . Reused . | . . . . . . . . . . . . . Traps Extracted . | . . . . . . . . . . . . . Installed . | . . . . . . . . . . . . . Triggered . | . . . . . . . . . . . . . Machines | -11 -10 -10 -10 -9 -8 -7 -6 -5 -4 -3 -2 -1 ---------- Run | Yrd Mat Min Exi Min Mat Fac Fac Fac Fac Res Res Acc Machines Disabled 13 | . . . . . . 4 . 1 5 1 . 2 Max in Single Turn 5 | . . . . . . 1 . 1 5 1 . 1 Garrison Access 1 | . . . . . . . 1 . . . . . Machines Repaired . | . . . . . . . . . . . . . Machines Dismantled . | . . . . . . . . . . . . . Machines Sabotaged . | . . . . . . . . . . . . . Overloaded Fab Kills . | . . . . . . . . . . . . . Hacking | -11 -10 -10 -10 -9 -8 -7 -6 -5 -4 -3 -2 -1 --------- Run | Yrd Mat Min Exi Min Mat Fac Fac Fac Fac Res Res Acc Machines Accessed 22 | . . 1 . . 2 4 5 4 1 3 1 1 Terminals 14 | . . . . . 2 2 3 2 1 2 1 1 Fabricators 5 | . . . . . . 2 1 2 . . . . Repair Stations 1 | . . . . . . . . . . 1 . . Recycling Units . | . . . . . . . . . . . . . Scanalyzers . | . . . . . . . . . . . . . Garrison Access 1 | . . . . . . . 1 . . . . . Total Hacks 41 | . . 1 . . 3 6 11 10 1 7 1 1 Successful 34 | . . 1 . . 3 4 10 10 1 4 1 . Failed 7 | . . . . . . 2 1 . . 3 . 1 Catastrophic 3 | . . . . . . 2 . . . . . 1 Database Lockouts . | . . . . . . . . . . . . . Manual 23 | . . . . . 3 3 5 7 . 3 1 1 Terminals 22 | . . . . . 3 2 5 5 1 4 1 1 Fabricators 14 | . . . . . . 4 5 5 . . . . Repair Stations 3 | . . . . . . . . . . 3 . . Recycling Units . | . . . . . . . . . . . . . Scanalyzers . | . . . . . . . . . . . . . Garrison Access 1 | . . . . . . . 1 . . . . . Terminal Hacks 14 | . . 1 . . 1 . 4 4 1 2 1 . Part Schematic 2 | . . . . . 1 . . 1 . . . . Open Door 1 | . . 1 . . . . . . . . . . Level Access Points 5 | . . . . . . . 1 1 1 1 1 . Machine Index 2 | . . . . . . . 1 1 . . . . Recall Investigation 2 | . . . . . . . 1 1 . . . . Recall Extermination 2 | . . . . . . . 1 . . 1 . . Fabricator Hacks 9 | . . . . . . 2 4 3 . . . . Network Status 1 | . . . . . . 1 . . . . . . Load Schematic 5 | . . . . . . 1 2 2 . . . . Build 3 | . . . . . . . 2 1 . . . . Repair Station Hacks 1 | . . . . . . . . . . 1 . . Scan Component 1 | . . . . . . . . . . 1 . . Recycling Unit Hacks . | . . . . . . . . . . . . . Scanalyzer . | . . . . . . . . . . . . . Garrison Access Hacks 1 | . . . . . . . 1 . . . . . Seal Access 1 | . . . . . . . 1 . . . . . Unauthorized Hacks 9 | . . . . . 2 2 1 3 . 1 . . Terminals 5 | . . . . . 2 1 . 1 . 1 . . Track 1 | . . . . . . . . . . 1 . . Assimilate 1 | . . . . . . . . 1 . . . . Botnet 3 | . . . . . 2 1 . . . . . . Fabricators 4 | . . . . . . 1 1 2 . . . . Prioritize 2 | . . . . . . . 1 1 . . . . Recompile 2 | . . . . . . 1 . 1 . . . . Repair Stations . | . . . . . . . . . . . . . Recycling Units . | . . . . . . . . . . . . . Scanalyzers . | . . . . . . . . . . . . . Garrison Access . | . . . . . . . . . . . . . Data Cores Recovered 3 | . . . . . . 2 1 . . . . . Used . | . . . . . . . . . . . . . Hacking Detections 12 | . . . . . . 3 2 3 . 3 . 1 Full Trace Events 3 | . . . . . . . 1 1 . 1 . . Feedback Events . | . . . . . . . . . . . . . Feedback Blocked . | . . . . . . . . . . . . . Robot Schematics Acquired . | . . . . . . . . . . . . . Robots Built . | . . . . . . . . . . . . . Authchips . | . . . . . . . . . . . . . Time . | . . . . . . . . . . . . . Total Robot Build Rating . | . . . . . . . . . . . . . Part Schematics Acquired 2 | . . . . . 1 . . 1 . . . . Parts Built 3 | . . . . . . . 2 1 . . . . Authchips 1 | . . . . . . . 1 . . . . . Time 80 | . . . . . . . 54 26 . . . . Total Part Build Rating 12 | . . . . . . . 6 6 . . . . Parts Repaired . | . . . . . . . . . . . . . Time . | . . . . . . . . . . . . . Parts Recycled . | . . . . . . . . . . . . . Recycled Matter . | . . . . . . . . . . . . . Retrieved Matter . | . . . . . . . . . . . . . Retrieved Components . | . . . . . . . . . . . . . Parts Scanalyzed . | . . . . . . . . . . . . . Part Schematics Acquired . | . . . . . . . . . . . . . Parts Damaged . | . . . . . . . . . . . . . Bothacking | -11 -10 -10 -10 -9 -8 -7 -6 -5 -4 -3 -2 -1 ------------ Run | Yrd Mat Min Exi Min Mat Fac Fac Fac Fac Res Res Acc Used RIF Installer . | . . . . . . . . . . . . . Robots Hacked . | . . . . . . . . . . . . . Non-combat . | . . . . . . . . . . . . . Combat . | . . . . . . . . . . . . . Robot Hacks Applied . | . . . . . . . . . . . . . Relay Couplers Released . | . . . . . . . . . . . . . Fabnet Peak Effective % . | . . . . . . . . . . . . . Robots Rewired . | . . . . . . . . . . . . . Allies Hacked . | . . . . . . . . . . . . . Hacks Repelled . | . . . . . . . . . . . . . Allies | -11 -10 -10 -10 -9 -8 -7 -6 -5 -4 -3 -2 -1 -------- Run | Yrd Mat Min Exi Min Mat Fac Fac Fac Fac Res Res Acc Total Allies 1 | . . . . . . . . 1 . . . . Largest Group . | . . . . . . . . . . . . . Highest-Rated Group . | . . . . . . . . . . . . . Highest-Rated Ally . | . . . . . . . . . . . . . Total Orders 3 | . . 1 . . . . . 2 . . . . STAY 1 | . . . . . . . . 1 . . . . ROAM 1 | . . . . . . . . 1 . . . . EXPLORE 1 | . . 1 . . . . . . . . . . Ally Attacks . | . . . . . . . . . . . . . Total Damage . | . . . . . . . . . . . . . Kills . | . . . . . . . . . . . . . Allies Corrupted . | . . . . . . . . . . . . . Allies Melted . | . . . . . . . . . . . . . Intel | -11 -10 -10 -10 -9 -8 -7 -6 -5 -4 -3 -2 -1 ------- Run | Yrd Mat Min Exi Min Mat Fac Fac Fac Fac Res Res Acc Active Infowar (turns) 2043 | . . . . . . 478 328 263 247 481 77 169 Sensors 1869 | . . . . . . 310 328 263 247 475 77 169 Terrain 352 | . . . . . . 206 . . . 146 . . Structural 1233 | . . . . . . 271 328 263 247 124 . . Robot Analysis Total . | . . . . . . . . . . . . . Derelict Logs Recovered 1 | . . 1 . . . . . . . . . . Drone Launches 16 | . . 16 . . . . . . . . . . Drone Recoveries . | . . . . . . . . . . . . . Exploration | -11 -10 -10 -10 -9 -8 -7 -6 -5 -4 -3 -2 -1 ------------- Run | Yrd Mat Min Exi Min Mat Fac Fac Fac Fac Res Res Acc Turns Passed 2812 | 20 31 208 66 55 46 596 328 263 247 583 96 273 Spaces Moved 4898 | 32 62 309 131 99 124 1198 576 515 561 718 172 401 Core 1467 | 32 62 309 131 8 . . . . . 352 172 401 Treads . | . . . . . . . . . . . . . Legs . | . . . . . . . . . . . . . Wheels . | . . . . . . . . . . . . . Hover . | . . . . . . . . . . . . . Flight 3431 | . . . . 91 124 1198 576 515 561 366 . . Fastest Speed 31 | 50 50 50 50 37 37 37 37 34 31 37 50 50 Average Speed 41 | 50 50 59 50 38 37 37 37 34 32 46 50 54 Slowest Speed 300 | 50 50 300 50 50 37 37 37 37 40 150 50 150 Overloaded Moves . | . . . . . . . . . . . . . Propulsion Burnouts . | . . . . . . . . . . . . . Robots Hopped 7 | . . . . . 1 3 . . . 3 . . Potential Cave-ins . | . . . . . . . . . . . . . Cave-ins Triggered . | . . . . . . . . . . . . . Exploration Rate (%) 23 | 3 21 86 50 18 13 34 20 12 15 19 6 9 Regions Visited 12 Branch Regions 3 Pre-discovered Areas . | . . . . . . . . . . . . . Known Exits Taken 7 | . . 1 . . . 1 1 1 1 1 1 . Unknown Exits Taken 5 | 1 1 . 1 1 1 . . . . . . . Scrap Searched 1 | . . 1 . . . . . . . . . . Spaces Dug 62 | . . . . . . 17 11 11 10 13 . . Terrain Destroyed 220 | . . . . . . 17 40 11 63 50 . 39 Melee 62 | . . . . . . 17 11 11 10 13 . . Projectile . | . . . . . . . . . . . . . AOE 158 | . . . . . . . 29 . 53 37 . 39 Terrain Rammed . | . . . . . . . . . . . . . Walls Destroyed . | . . . . . . . . . . . . . Machines Disabled . | . . . . . . . . . . . . . Actions | -11 -10 -10 -10 -9 -8 -7 -6 -5 -4 -3 -2 -1 --------- Run | Yrd Mat Min Exi Min Mat Fac Fac Fac Fac Res Res Acc Total 5425 | 34 61 332 130 110 122 1290 667 574 592 893 181 439 Wait 256 | . . 18 . 2 . 15 64 36 6 87 8 20 Move 4872 | 31 61 308 130 98 121 1191 575 514 560 711 171 401 Hop 7 | . . . . . 1 3 . . . 3 . . Pick Up 16 | 1 . 1 . 2 . 7 1 2 . 2 . . Fast Attach 35 | 2 . 1 . 4 . 10 3 2 2 7 . 4 Attach 18 | . . 1 . . . 1 3 1 . 9 . 3 Detach 10 | . . 1 . . . . 2 1 . 3 . 3 Swap 11 | . . . . 1 . 4 2 . 4 . . . Drop 20 | . . 1 . 1 . 11 1 2 1 2 . 1 Fire 17 | . . . . 2 . . 3 . 3 2 . 7 Melee 137 | . . . . . . 48 13 16 16 44 . . Ram 6 | . . 1 . . . . . . . 3 2 . Kick . | . . . . . . . . . . . . . Crush . | . . . . . . . . . . . . . Escape Stasis 20 | . . . . . . . . . . 20 . . Rewire . | . . . . . . . . . . . . . Trap . | . . . . . . . . . . . . . Miscellaneous . | . . . . . . . . . . . . . Route ------- -11/Scrapyard -10/Materials -10/Mines (discovered 3 exits: [*Mat] / *Exi / [*Sub]) -10/Exiles (discovered 2 exits: [*Min x2]) -9/Mines -8/Materials -7/Factory (discovered 4 exits: *Fac x2 / *Low x2) -6/Factory (discovered 4 exits: *Fac x4) -5/Factory (discovered 4 exits: *Fac x4) -4/Factory (discovered 4 exits: *Res x4) -3/Research (discovered 4 exits: *Res x3 / [*Tes]) -2/Research (discovered 3 exits: *Acc x3) -1/Access History --------- Turn | Location | Event 9 | -11/Scrapyard | Discovered new exit (range 14) 21 | -11/Scrapyard | Entered Materials 47 | -10/Materials | Discovered new exit (range 12) 52 | -10/Materials | Entered Mines 71 | -10/Mines | YI-UF0 nonchalantly dropped a Grenade Launcher on the ground 110 | -10/Mines | Found the Drone Emporium 111 | -10/Mines | Found Prototype Device 111 | -10/Mines | Identified Decoy Drone Bay 153 | -10/Mines | Discovered new exit (range 11) 184 | -10/Mines | Discovered new exit (range 50) 223 | -10/Mines | Identified exit to Exiles 226 | -10/Mines | Lost 7 allies 258 | -10/Mines | Deemed a non-threat by the Exiles lab entrance 260 | -10/Mines | Entered Exiles 268 | -10/Exiles | Discovered new exit (range 15) 274 | -10/Exiles | Met 8R-AWN 282 | -10/Exiles | Met EX-HEX 303 | -10/Exiles | Met EX-DEC 315 | -10/Exiles | Build established: Mutant 320 | -10/Exiles | Discovered new exit (range 12) 326 | -10/Exiles | Entered Mines 371 | -9/Mines | A weapon hastily lodged in a ceiling crevice suddenly fell to the ground 380 | -9/Mines | Discovered new exit (range 6) 381 | -9/Mines | Entered Materials 381 | -8/Materials | Evolved 4 slots: Utility x4 425 | -8/Materials | Discovered new exit (range 7) 427 | -8/Materials | Entered Factory 427 | -7/Factory | Evolved 2 slots: Utility x2 663 | -7/Factory | Discovered new exit (range 11) 824 | -7/Factory | Discovered new exit (range 3) 824 | -7/Factory | Identified exit to Lower Caves 939 | -7/Factory | Discovered exit to Lower Caves (range 14) 1000 | -7/Factory | Build established: Hacker-Scout 1016 | -7/Factory | Discovered new exit (range 15) 1023 | -7/Factory | Identified exit to Factory 1023 | -7/Factory | Entered another Factory area 1023 | -6/Factory | Evolved 2 slots: Utility x2 1055 | -6/Factory | Found Prototype Launcher 1056 | -6/Factory | Identified Scatter Rocket Array 1102 | -6/Factory | Discovered new exit (range 13) 1198 | -6/Factory | Discovered new exit (range 15) 1236 | -6/Factory | Fabricated Hacking Suite (x1) 1255 | -6/Factory | Fabricated Hacking Suite? 1322 | -6/Factory | Identified exit to Factory 1351 | -6/Factory | Entered another Factory area 1351 | -5/Factory | Evolved 2 slots: Propulsion x2 1424 | -5/Factory | Fabricated Nuclear Pulse Array (x1) 1442 | -5/Factory | Identified exit to Factory 1536 | -5/Factory | Build established: Wizard-Scout 1614 | -5/Factory | Entered another Factory area 1614 | -4/Factory | Evolved 2 slots: Propulsion x2 1686 | -4/Factory | Identified exit to Research 1784 | -4/Factory | Found Prototype Hackware 1784 | -4/Factory | Identified Exp. Hacking Suite 1836 | -4/Factory | Garrison activated, responded to threat 1861 | -4/Factory | Entered Research 1861 | -3/Research | Evolved 2 slots: Power x1, Utility x1 1888 | -3/Research | Identified exit to Research 1890 | -3/Research | Lost 7 parts (3n3u1w) 2016 | -3/Research | Lost 3 parts (2u1w) 2244 | -3/Research | Spotted B-86 Titan 2272 | -3/Research | Lost 3 parts (1p1u1w) 2384 | -3/Research | Core integrity fell below 50% 2408 | -3/Research | Lost 8 parts (1p3n3u1w) 2419 | -3/Research | Discovered new exit (range 12) 2444 | -3/Research | Entered another Research area 2444 | -2/Research | Evolved 2 slots: Utility x2 2528 | -2/Research | Identified exit to Access 2540 | -2/Research | Entered Access 2540 | -1/Access | Evolved 2 slots: Propulsion x2 2552 | -1/Access | Lost 3 parts (3u) 2641 | -1/Access | Build established: Hacker-Mutant 2719 | -1/Access | Garrison activated, responded to threat 2766 | -1/Access | Spotted B-99 Colossus 2783 | -1/Access | Core integrity fell below 50% 2791 | -1/Access | Core integrity fell below 20% 2813 | -1/Access | Destroyed by G-73 Enforcer with Heavy Laser Last Messages --------------- B-99 Colossus activates siege mode. Slug penetrates Wall. Penetrated by Slug. Hacking Suite destroyed. Slug penetrates Wall. Penetrated by Slug. Slug penetrates Wall. Penetrated by Slug. Slug penetrates Wall. Penetrated by Slug. ALERT: Potential suspicious activity detected, Programmers report to Access Zone 8W. Wall collapses. Slug penetrates Fabricator. ALERT: Security rotation in progress. Connecting with Terminal... Scatter Rocket Array destroyed. Destroyed Scatter Rocket Array. G-73 Enforcer destroyed. The unstable cave ceiling collapses. Map ----- +----------------------------------------------------+ | ?????????????????????????????# # # | | ?????????????????????????????# #^ # | | ?????????????????????????????# * # # | | ?????????????????????????????########### # | | ???????????????????????????????????????# # | | ???????????????????????????????????????# | | ???????????????????????????????????????# | | ???????????????????????????????????????# | | ?????????????????????????????????????### | | ???????????????????????????#######???# | | ???????????????????????????# ##### | | ???????????????????????????# | | ???????????????????????????# | | ???????????????????????????# | | ???????????????????????????# ##### | | ???????????????????????????## g##???# | | ????????????????????????????# g#????## ###### | | ????????????????????????????# #???### #????? | | ????????????????????????????# #?? # #????? | | ???????????????????????????## ##? # +????? | | ??????????????????#?#??????# # # #????? | | ?????????????????## ######g"" # # #????? | | ????????????????? gg T + #????? | | ??????????????????????## # #######????? | | ????????????????####+### # #??????????? | | ????????????????# @ ## ########??????????? | | ????????????????# # #??????????????? | | ????????????????# ??# = #??????????????? | | ????????????????# ????# =#??????????????? | | ????????????????# ??????# #??????????????? | | ????????????????????????###########??????????????? | | | | | | | | | | | | | | | | | | | | | | | | | | | | | | | | | | | | | | | +----------------------------------------------------+ Best States ------------- Heat Dissipation 52 Energy Generation 14 Energy Capacity 265 Matter Stores 300 Matter Capacity 300 Sight Range 16 Robot Scan Range 16 Terrain Scan Range 14 Terrain Scan Density 85 Evasion (%) 63 Melee Accuracy 12 Offensive Hacking 76 Defensive Hacking 14 Authchip Count 1 Item Schematics ----------------- Hacking Suite | -8/Materials | Hacked Nuclear Pulse Array | -5/Factory | Hacked Robot Schematics ------------------ None Fabricated ------------ Hacking Suite | x1 | -6/Factory | Authchip Hacking Suite | x1 | -6/Factory Nuclear Pulse Array | x1 | -5/Factory Repaired ---------- Nothing Alien Tech Used ----------------- None Achievements -------------- None Challenges ------------ None Game ------ Seed AerolevSiegeLoader Manual? 0 Play Time 00:39:59 Cumulative 224.4 hours Start 2025.05.30 @ 21:39:55 End 2025.05.30 @ 22:16:53 Sessions 1 Manual Loads 0 Difficulty Rogue Special Mode None Game No. 227 Rogue 38 Adventurer 177 Explorer 12 Win Type - Total 61 Types 18/1/16/2/12/0/4/3/0/5 Lore% 49 Gallery% 50 Achievement% 68 Wizard Run 0 Options --------- Layout 0 ASCII 0 Keyboard 0 Movement Numpad Keybinds 0 Fullscreen 2 Font 12/Smallcaps Map View 83x54 Zoom Use 0% Tactical HUD 0 Map Filters NONE Filters NONE Steam X RUN: 429d47cb-accc-4273-9b02-f5e88d2a8748